Cogmind - Beta 12 @@@ ROGUE MODE // 2023.06.07 @ 08:29:08 Player: Mr Goldstein Result: Self-destructed Performance ------------- Evolutions (3) 1500 Regions Visited (5) 1000 Robots Destroyed (10) 50 Value Destroyed (162) 162 Prototype IDs (1) 20 Alien Tech Used (0) 0 Bonus (200) 200 TOTAL SCORE: 2932 Bonus ------- Pacifist 200 Cogmind --------- Core Integrity 700/700 Matter 212/300 Energy 100/100 System Corruption 0% Temperature Cool (0) Movement Core (50) Location -7/Factory Parts ------- > --- POWER (1) -------- (None) > --- PROPULSION (5) --- (None) > --- UTILITY (5) ------ (None) > --- WEAPON (2) ------- (None) > --- INVENTORY (5) ---- VTOL Module Rocket Launcher Peak State ------------ > --- POWER ------------ (None) > --- PROPULSION ------- (None) > --- UTILITY ---------- (None) > --- WEAPON ----------- Improved Assault Rifle > --- INVENTORY -------- Grenade Launcher [Rating: 3] Favorites ----------- Power None Propulsion None Utility None Weapon Grenade Launcher Ballistic Gun Improved Assault Rifle Launcher Grenade Launcher Build | -11 -10 -9 -9 -8 -7 ------- Run | Jun Mat Mat Sto Mat Fac Slots Evolved 6 | . . 2 . 2 2 Power . | . . . . . . Propulsion 3 | . . 1 . 1 1 Utility 3 | . . 1 . 1 1 Weapon . | . . . . . . Parts Attached 4 | . . 1 3 . . Power . | . . . . . . Engine . | . . . . . . Core . | . . . . . . Reactor . | . . . . . . Propulsion . | . . . . . . Treads . | . . . . . . Leg . | . . . . . . Wheel . | . . . . . . Hover . | . . . . . . Flight . | . . . . . . Utility . | . . . . . . Device . | . . . . . . Storage . | . . . . . . Processor . | . . . . . . Hackware . | . . . . . . Protection . | . . . . . . Artifact . | . . . . . . Weapon 4 | . . 1 3 . . Energy Gun . | . . . . . . Energy Cannon . | . . . . . . Ballistic Gun 1 | . . 1 . . . Ballistic Cannon . | . . . . . . Launcher 3 | . . . 3 . . Special Weapon . | . . . . . . Impact Weapon . | . . . . . . Slashing Weapon . | . . . . . . Piercing Weapon . | . . . . . . Special Melee Weapon . | . . . . . . Unidentified Prototypes 1 | . . 1 . . . Parts Lost 1 | . . . 1 . . Power . | . . . . . . Propulsion . | . . . . . . Utility . | . . . . . . Weapon 1 | . . . 1 . . Highest Loss Streak 1 | . . . 1 . . To Critical Strikes . | . . . . . . Average Slot Usage (%) 2 | . . . 4 . . Launcher 2 | . . . 4 . . Naked Turns 195 | . 41 37 77 40 . Heaviest Build 3 | . . . 3 . . Greatest Support 3 | 3 3 3 3 3 . Greatest Overweight (x) . | . . . . . . Average Overweight (x) . | . . . . . . Largest Inventory Capacity 5 | 5 5 5 5 5 . Average Capacity 5 | 5 5 5 5 5 . Most Carried 2 | . 1 1 2 2 . Average Carried 1 | . . 1 1 2 . Final Capacity 5 | 5 5 5 5 5 5 Final Carried 2 | . 1 1 2 2 2 Class Distribution -------------------- 100% | Mutant Dominant Class ---------------- Mutant | -10/Materials Mutant | -9/Materials Mutant | -9/Storage Mutant | -8/Materials Mutant | -7/Factory Resources | -11 -10 -9 -9 -8 -7 ----------- Run | Jun Mat Mat Sto Mat Fac Matter Collected 239 | 149 . . 90 . . Remotely . | . . . . . . Salvage Created 142 | . . . 142 . . Parts 16 | . . . 16 . . Haulers Intercepted 1 | . . . 1 . . Recyclers Shooed . | . . . . . . Parts Field Recycled . | . . . . . . Retrieved Matter . | . . . . . . Parts Self-Destructed . | . . . . . . Prevented . | . . . . . . Kills | -11 -10 -9 -9 -8 -7 ------- Run | Jun Mat Mat Sto Mat Fac Combat Hostiles Destroyed 7 | . . . 7 . . AOE 7 | . . . 7 . . Classes Destroyed 6 | . . . 6 . . Worker 1 | . . . 1 . . Builder 1 | . . . 1 . . Hauler 1 | . . . 1 . . Swarmer 4 | . . . 4 . . Grunt 2 | . . . 2 . . Brawler 1 | . . . 1 . . Best Kill Streak 8 | . . . 8 . . Combat Bots Only 7 | . . . 7 . . Max Kills in Single Turn 3 | . . . 3 . . Gunslinging . | . . . . . . Exploded 3 | . . . 3 . . Melee . | . . . . . . Uniques/NPCs Destroyed . | . . . . . . Combat | -11 -10 -9 -9 -8 -7 -------- Run | Jun Mat Mat Sto Mat Fac Damage Taken 763 | . 51 60 468 184 . Core 625 | . 51 60 330 184 . Absorbed by Shields . | . . . . . . Core Remaining (%) 61 | 100 79 . 2 66 . Volleys Fired 10 | . . . 10 . . Largest 1 | . . . 1 . . Hottest 33 | . . . 33 . . Shots Fired 10 | . . . 10 . . Gun . | . . . . . . Cannon . | . . . . . . Launcher 10 | . . . 10 . . Special . | . . . . . . Kinetic . | . . . . . . Thermal . | . . . . . . Explosive 10 | . . . 10 . . Electromagnetic . | . . . . . . Robot Hit Streak 7 | . . . 7 . . Robot Miss Streak 1 | . . . 1 . . Penetration Max . | . . . . . . Secondary Targets . | . . . . . . Shots Hit Robots 7 | . . . 7 . . Core Hits 16 | . . . 16 . . Critical Kills . | . . . . . . Critical Parts Destroyed . | . . . . . . Critical Strikes . | . . . . . . Melee Attacks . | . . . . . . Impact . | . . . . . . Slashing . | . . . . . . Piercing . | . . . . . . Sneak Attacks . | . . . . . . Combat Hostiles . | . . . . . . Follow-up Attacks . | . . . . . . Damage Inflicted 716 | . . 7 709 . . Guns . | . . . . . . Cannons . | . . . . . . Explosions 700 | . . . 700 . . Melee . | . . . . . . Ramming 16 | . . 7 9 . . Kinetic . | . . . . . . Thermal . | . . . . . . Explosive 700 | . . . 700 . . Electromagnetic . | . . . . . . Impact . | . . . . . . Slashing . | . . . . . . Piercing . | . . . . . . Highest Corruption . | . . . . . . Average Corruption . | . . . . . . Corruption Purged . | . . . . . . Corruption Blocked . | . . . . . . Overload Shots . | . . . . . . Overflow Damage 2 | . . . 2 . . Projectiles . | . . . . . . Explosions 2 | . . . 2 . . Melee . | . . . . . . Knockbacks . | . . . . . . Impact . | . . . . . . Kinetic . | . . . . . . Secondary . | . . . . . . Self-Inflicted Damage 7 | . . 3 4 . . Shots . | . . . . . . Rammed 3 | . . 1 2 . . Targets Rammed 3 | . . 1 2 . . Kicked . | . . . . . . Crushed . | . . . . . . Highest Temperature 16 | . . . 16 . . Average Temperature 6 | . . . 6 . . Received Heat Transfer 171 | . 12 18 141 . . Siege Activations . | . . . . . . Robots Corrupted . | . . . . . . Combat Hostiles . | . . . . . . Parts Fried . | . . . . . . Impact Corruptions . | . . . . . . Robots Melted . | . . . . . . Combat Hostiles . | . . . . . . Parts Melted . | . . . . . . Heat Transferred . | . . . . . . Parts Sabotaged . | . . . . . . Parts Stolen . | . . . . . . Parts Stripped . | . . . . . . Power Chain Reactions . | . . . . . . Missiles Intercepted . | . . . . . . Alert | -11 -10 -9 -9 -8 -7 ------- Run | Jun Mat Mat Sto Mat Fac Peak Influence 310 | . 30 27 310 175 . Initial 130 | . . 12 11 130 79 Average 102 | . 16 14 142 160 . Maximum Alert Level 1 | . . . 1 . . Low Security (%) 79 | 100 100 100 61 100 . Level 1 20 | . . . 38 . . Level 2 . | . . . . . . Level 3 . | . . . . . . Level 4 . | . . . . . . Level 5 . | . . . . . . High Security . | . . . . . . Max Security . | . . . . . . Squads Dispatched 5 | . 1 . 2 2 . Investigation 3 | . . . 1 2 . Extermination . | . . . . . . Reinforcement 2 | . 1 . 1 . . Assault . | . . . . . . Garrison . | . . . . . . Intercept . | . . . . . . Searches Triggered . | . . . . . . Construction Impeded . | . . . . . . Haulers Reinforced . | . . . . . . Active Scanning Responses . | . . . . . . Cargo Convoy Interrupts . | . . . . . . Stealth | -11 -10 -9 -9 -8 -7 --------- Run | Jun Mat Mat Sto Mat Fac Distress Signals 2 | . . . 2 . . Communications Jammed . | . . . . . . Distress Signals . | . . . . . . Times Spotted 26 | . 5 2 16 3 . Peak Tracking Total 13 | . 4 2 13 3 . Tactical Retreats 1 | . . . 1 . . Traps | -11 -10 -9 -9 -8 -7 ------- Run | Jun Mat Mat Sto Mat Fac Traps Triggered . | . . . . . . Indirectly . | . . . . . . Trap Hack Attempts . | . . . . . . Triggered . | . . . . . . Disarmed . | . . . . . . Reprogrammed . | . . . . . . Reused . | . . . . . . Traps Extracted . | . . . . . . Installed . | . . . . . . Triggered . | . . . . . . Machines | -11 -10 -9 -9 -8 -7 ---------- Run | Jun Mat Mat Sto Mat Fac Machines Disabled 1 | . . . 1 . . Max in Single Turn 1 | . . . 1 . . Machines Repaired . | . . . . . . Machines Sabotaged . | . . . . . . Overloaded Fab Kills . | . . . . . . Hacking | -11 -10 -9 -9 -8 -7 --------- Run | Jun Mat Mat Sto Mat Fac Machines Accessed 3 | . . . 1 2 . Terminals 2 | . . . 1 1 . Fabricators . | . . . . . . Repair Stations . | . . . . . . Recycling Units 1 | . . . . 1 . Scanalyzers . | . . . . . . Garrison Access . | . . . . . . Total Hacks 7 | . . . 3 4 . Successful 1 | . . . . 1 . Failed 6 | . . . 3 3 . Catastrophic 2 | . . . 1 1 . Database Lockouts . | . . . . . . Manual 4 | . . . . 4 . Terminals 6 | . . . 3 3 . Fabricators . | . . . . . . Repair Stations . | . . . . . . Recycling Units 1 | . . . . 1 . Scanalyzers . | . . . . . . Garrison Access . | . . . . . . Terminal Hacks . | . . . . . . Fabricator Hacks . | . . . . . . Repair Station Hacks . | . . . . . . Recycling Unit Hacks . | . . . . . . Scanalyzer . | . . . . . . Garrison Access Hacks . | . . . . . . Unauthorized Hacks 1 | . . . . 1 . Terminals . | . . . . . . Fabricators . | . . . . . . Repair Stations . | . . . . . . Recycling Units 1 | . . . . 1 . Tunnel 1 | . . . . 1 . Scanalyzers . | . . . . . . Garrison Access . | . . . . . . Data Cores Recovered . | . . . . . . Used . | . . . . . . Hacking Detections 2 | . . . 1 1 . Full Trace Events 2 | . . . 1 1 . Feedback Events . | . . . . . . Feedback Blocked . | . . . . . . Robot Schematics Acquired . | . . . . . . Robots Built . | . . . . . . Authchips . | . . . . . . Time . | . . . . . . Total Robot Build Rating . | . . . . . . Part Schematics Acquired . | . . . . . . Parts Built . | . . . . . . Authchips . | . . . . . . Time . | . . . . . . Total Part Build Rating . | . . . . . . Parts Repaired . | . . . . . . Time . | . . . . . . Parts Recycled . | . . . . . . Recycled Matter . | . . . . . . Retrieved Matter . | . . . . . . Retrieved Components . | . . . . . . Parts Scanalyzed . | . . . . . . Part Schematics Acquired . | . . . . . . Parts Damaged . | . . . . . . Bothacking | -11 -10 -9 -9 -8 -7 ------------ Run | Jun Mat Mat Sto Mat Fac Used RIF Installer . | . . . . . . Robots Hacked . | . . . . . . Non-combat . | . . . . . . Combat . | . . . . . . Robot Hacks Applied . | . . . . . . Relay Couplers Released . | . . . . . . Fabnet Peak Effective % . | . . . . . . Robots Rewired . | . . . . . . Allies Hacked . | . . . . . . Hacks Repelled . | . . . . . . Allies | -11 -10 -9 -9 -8 -7 -------- Run | Jun Mat Mat Sto Mat Fac Total Allies . | . . . . . . Largest Group . | . . . . . . Highest-Rated Group . | . . . . . . Highest-Rated Ally . | . . . . . . Total Orders . | . . . . . . Ally Attacks . | . . . . . . Total Damage . | . . . . . . Kills . | . . . . . . Allies Corrupted . | . . . . . . Allies Melted . | . . . . . . Intel | -11 -10 -9 -9 -8 -7 ------- Run | Jun Mat Mat Sto Mat Fac Robot Analysis Total . | . . . . . . Derelict Logs Recovered . | . . . . . . Drone Launches . | . . . . . . Drone Recoveries . | . . . . . . Exploration | -11 -10 -9 -9 -8 -7 ------------- Run | Jun Mat Mat Sto Mat Fac Turns Passed 277 | 11 41 38 147 40 . Spaces Moved 443 | 23 79 71 191 79 . Core 443 | 23 79 71 191 79 . Treads . | . . . . . . Legs . | . . . . . . Wheels . | . . . . . . Hover . | . . . . . . Flight . | . . . . . . Fastest Speed 50 | 50 50 50 50 50 . Average Speed 50 | 50 50 50 50 50 . Slowest Speed 50 | 50 50 50 50 50 . Overloaded Moves . | . . . . . . Propulsion Burnouts . | . . . . . . Robots Hopped . | . . . . . . Cave-ins Triggered . | . . . . . . Exploration Rate (%) 21 | 3 28 15 50 13 . Regions Visited 5 Branch Regions 1 Pre-discovered Areas 1 | . . . . 1 . Known Exits Taken . | . . . . . . Unknown Exits Taken 5 | 1 1 1 1 1 . Scrap Searched . | . . . . . . Spaces Dug . | . . . . . . Terrain Destroyed 63 | . . . 63 . . Melee . | . . . . . . Projectile . | . . . . . . AOE 63 | . . . 63 . . Terrain Rammed . | . . . . . . Walls Destroyed . | . . . . . . Machines Disabled . | . . . . . . Actions | -11 -10 -9 -9 -8 -7 --------- Run | Jun Mat Mat Sto Mat Fac Total 484 | 22 79 73 232 78 . Wait 23 | . . . 23 . . Move 439 | 22 78 71 190 78 . Hop . | . . . . . . Pick Up 3 | . 1 . 2 . . Fast Attach 1 | . . 1 . . . Attach 3 | . . . 3 . . Detach 2 | . . . 2 . . Swap . | . . . . . . Drop 1 | . . 1 . . . Fire 10 | . . . 10 . . Melee . | . . . . . . Ram 2 | . . . 2 . . Kick . | . . . . . . Crush . | . . . . . . Escape Stasis . | . . . . . . Rewire . | . . . . . . Trap . | . . . . . . Miscellaneous . | . . . . . . Route ------- -11/Junkyard -10/Materials -9/Materials -9/Storage -8/Materials -7/Factory History --------- Turn | Location | Event 6 | -11/Junkyard | Discovered new exit (range 12) 12 | -11/Junkyard | Entered Materials 45 | -10/Materials | Discovered new exit (range 15) 53 | -10/Materials | Entered another Materials area 53 | -9/Materials | Evolved 2 slots: Propulsion x1, Utility x1 84 | -9/Materials | Discovered new exit (range 14) 91 | -9/Materials | Entered Storage 171 | -9/Storage | Core integrity fell below 50% 205 | -9/Storage | Destroyed 7 combat bots 209 | -9/Storage | Core integrity fell below 20% 231 | -9/Storage | Discovered new exit (range 15) 238 | -9/Storage | Entered Materials 238 | -8/Materials | Evolved 2 slots: Propulsion x1, Utility x1 277 | -8/Materials | Discovered new exit (range 3) 278 | -8/Materials | Entered Factory 278 | -7/Factory | Evolved 2 slots: Propulsion x1, Utility x1 278 | -7/Factory | Self-destructed Last Messages --------------- LOCATION=UNKNOWN GOAL=ESCAPE 00244_ Connecting with Recycling Unit... 00244_ Current location identified: Materials >>Force(Tunnel) DISCOVERED[-4/Armory] 00244_ ALERT: Suspicious activity at Recycling Unit M001. Dispatching Investigation squad. 00253_ Connecting with Terminal... 00253_ ALERT: Suspicious activity at Terminal M011. Dispatching Investigation squad. 00255_ T-07 Excavator is excavating. 00265_ Slug penetrates Wall. 00274_ Knocked back. 00275_ Penetrated by Slug. 00276_ Knocked back. 00277_ EXIT=FOUND PARAMETERS=PROPULSION+1,UTILITY+1 LOCATION=UNKNOWN GOAL=ESCAPE Map ----- +----------------------------------------------------+ | ?????????????????????????????????????? | | ?????????????????????????????????????? | | ?????????????????????????????????????? | | ?????????????????????????????????????? | | ?????????????????????????????????????? | | ?????????????????????????????????????? | | ?????????????????????????????????????? | | ?????????????????????????????????????? | | ?????????????????????????????????????? | | ?????????????????????????????????????? | | ?????????????????????????????????????? | | ?????????????????????????????????????? | | ?????????????????????????????????????? | | ?????????????????????????????????????? | | ?????????????????????????????????????? | | ?????????????????????????????????????? | | ?????????????????????????????????????? | | ?????????????????????????????????????? | | ?????????????????????????????????????? | | ?????????????????????????????????????? | | ?????????????????????????#???????????? | | ?????????????????????? #???????????? | | ??????????########## ###?????????? | | ??????????# ????????? | | ??????????# ????????? | | ??????????# @ ????????? | | ??????????# ????????? | | ??????????# ????????? | | ??????????##################?????????? | | ?????????????????????????????????????? | | ?????????????????????????????????????? | | ?????????????????????????????????????? | | ?????????????????????????????????????? | | ?????????????????????????????????????? | | ?????????????????????????????????????? | | ?????????????????????????????????????? | | ?????????????????????????????????????? | | ?????????????????????????????????????? | | ?????????????????????????????????????? | | ?????????????????????????????????????? | | ?????????????????????????????????????? | | ?????????????????????????????????????? | | ?????????????????????????????????????? | | ?????????????????????????????????????? | | ?????????????????????????????????????? | | ?????????????????????????????????????? | | ?????????????????????????????????????? | | ?????????????????????????????????????? | | ?????????????????????????????????????? | | ?????????????????????????????????????? | +----------------------------------------------------+ Best States ------------- Heat Dissipation 31 Energy Generation 5 Energy Capacity 100 Matter Stores 284 Matter Capacity 300 Sight Range 16 Terrain Scan Density 10 Evasion (%) 50 Item Schematics ----------------- None Robot Schematics ------------------ None Fabricated ------------ Nothing Alien Tech Used ----------------- None Achievements -------------- None Challenges ------------ None Game ------ Seed PotentialDefenseVibroblade Manual? 0 Play Time 00:03:22 Cumulative 278.6 hours Start 2023.06.07 @ 08:25:50 End 2023.06.07 @ 08:29:08 Sessions 1 Manual Loads 0 Difficulty Rogue Special Mode None Game No. 822 Rogue 822 Adventurer 0 Explorer 0 Win Type - Total 16 Types 8/0/6/2/0/0/0/0/0 Lore% 89 Gallery% 87 Achievement% 78 Wizard Run 0 Options --------- ASCII 0 Keyboard 0 Movement Mouse Keybinds 0 Fullscreen 1 Font 16/SmallcapsGlow Map View 75x55 Tactical HUD 1 Map Filters NONE Filters NONE Steam 1 RUN: 9ed7ee82-76f0-42b0-be21-4063a5bcd0f0